fUST/lending_fUST_20250311
["ID","MTS","AMOUNT","RATE_DAILY","PERIOD"]
[355851346,1741635272433,-225.0,0.00048,90]
[355851347,1741635272494,-167.0,0.00048,90]
[355851348,1741635272556,-470.33734554,0.00048208,120]
[355851349,1741635272623,-9841.18,0.00048209,120]
[355851350,1741635272682,-225.0,0.00048356,90]
[355851351,1741635272743,-167.0,0.00048356,90]
[355851352,1741635272809,-1315.52211232,0.00048699,120]
[355851353,1741635272873,-204859.29896004,0.00048699,30]
[355851354,1741635272936,-184.75,0.000488,30]
[355851355,1741635273001,-1641.46,0.000488,30]
[355851356,1741635273070,-157.6,0.000488,30]
[355851357,1741635273138,-168.1,0.000488,30]
[355851358,1741635273212,-1300.04,0.000488,30]
[355851359,1741635273280,-270.63,0.000488,30]
[355851360,1741635273349,-460.92,0.000488,30]
[355851361,1741635273421,-9191.05871279,0.000489,120]
[355851362,1741635273494,-355735.23666879,0.00049,90]
[355851363,1741635273562,-189.54,0.00049175,30]
[355851364,1741635273632,-1000.0,0.00049315,120]
[355851365,1741635273702,-1000.0,0.00049342,120]
[355851366,1741635273771,-1000.0,0.00049369,120]
[355851367,1741635273838,-1000.0,0.00049397,120]
[355851368,1741635273903,-1000.0,0.000494,60]
[355851369,1741635273971,-1000.0,0.00049424,120]
[355851370,1741635274040,-1000.0,0.00049452,120]
[355851371,1741635274111,-1000.0,0.00049479,120]
[355851372,1741635274180,-168.1,0.000495,30]
[355851373,1741635274246,-1300.04,0.000495,30]
[355851374,1741635274321,-270.63,0.000495,30]
[355851375,1741635274392,-460.92,0.000495,30]
[355851376,1741635274460,-1000.0,0.00049506,120]
[355851377,1741635274524,-1315.52211228,0.00049513,120]
[355851378,1741635274586,-1000.0,0.00049534,120]
[355851379,1741635274647,-1000.0,0.00049561,120]
[355851380,1741635274709,-1000.0,0.00049589,120]
[355851381,1741635274808,-184.75,0.000496,30]
[355851382,1741635274872,-1641.46,0.000496,30]
[355851383,1741635274937,-1000.0,0.00049616,120]
[355851384,1741635275003,-1000.0,0.00049643,120]
[355851385,1741635275066,-1000.0,0.00049671,120]
[355851386,1741635275133,-1000.0,0.00049698,120]
[355851387,1741635275197,-602.54564707,0.00049726,120]
[355851388,1741635275262,-9841.18,0.00049852,120]
[355851389,1741635275321,-1003.11643765,0.0005,120]
[355851390,1741635275380,-460.92,0.000502,30]
[355851391,1741635275441,-168.1,0.000503,30]
[355851392,1741635275501,-1300.04,0.000503,30]
[355851393,1741635275560,-270.63,0.000503,30]
[355851394,1741635275618,-151.0,0.00050325,120]
[355851395,1741635275673,-151.0,0.00050325,120]
[355851396,1741635275729,-151.0,0.00050325,120]
[355851397,1741635275783,-151.0,0.00050325,120]
[355851398,1741635275844,-1315.52211228,0.00050327,120]
[355851399,1741635275901,-225.0,0.00050486,120]
[355851400,1741635275966,-167.0,0.00050486,120]
[355851401,1741635276031,-184.75,0.000505,30]
[355851402,1741635276095,-1641.46,0.000505,30]
[355851403,1741635276167,-157.6,0.000505,30]
[355851404,1741635276237,-189.54,0.00050544,30]
[355851405,1741635276304,-408.76,0.000506,48]
[355851406,1741635276373,-408.76,0.000506,48]
[355851407,1741635276644,-408.76,0.000506,48]
[355851408,1741635276714,-408.76,0.000506,48]
[355851409,1741635276777,-408.76,0.000506,48]
[355851410,1741635276841,-408.76,0.000506,48]
[355851411,1741635276914,-408.76,0.000506,48]
[355851412,1741635276982,-408.76,0.000506,48]
[355851413,1741635277052,-408.76,0.000506,48]
[355851414,1741635277122,-408.76,0.000506,48]
[355851415,1741635277192,-408.76,0.000506,48]
[355851416,1741635277266,-408.76,0.000506,48]
[355851417,1741635277335,-460.92,0.000509,30]
[355851418,1741635277399,-580.25595836,0.00050958,120]
[355851419,1741635277464,-500.0,0.00050958,120]
[355851420,1741635277526,-500.0,0.00050958,120]
[355851421,1741635277583,-500.0,0.00050958,120]
[355851422,1741635277641,-500.0,0.00050958,120]
[355851423,1741635277702,-500.0,0.00050958,120]
[355851424,1741635277762,-500.0,0.00050958,120]
[355851425,1741635277820,-512.91098312,0.00050958,120]
[355851426,1741635277878,-151.0,0.00050958,120]
[355851427,1741635277938,-151.0,0.00050958,120]
[355851428,1741635277998,-151.0,0.00050958,120]
[355851429,1741635278063,-151.0,0.00050958,120]
[355851430,1741635278131,-151.0,0.00050958,120]
[355851431,1741635278198,-151.0,0.00050958,120]
[355851432,1741635278263,-500.0,0.00050958,120]
[355851433,1741635278321,-500.0,0.00050958,120]
[355851434,1741635278376,-525.66041988,0.00050958,120]
[355851435,1741635278432,-500.0,0.00050958,120]
[355851436,1741635278492,-500.0,0.00050958,120]
[355851437,1741635278552,-500.0,0.00050958,120]
[355851438,1741635278607,-213.136295,0.00050958,120]
[355851439,1741635278665,-500.0,0.00050958,120]
[355851440,1741635278721,-500.0,0.00050958,120]
[355851441,1741635278776,-500.0,0.00050958,120]
[355851442,1741635278830,-500.0,0.00050958,120]
[355851443,1741635278884,-753.12,0.00050958,120]
[355851444,1741635278938,-1971.95,0.00050958,120]
[355851445,1741635278997,-500.0,0.00050958,120]
[355851446,1741635279055,-500.0,0.00050958,120]
[355851447,1741635279117,-500.0,0.00050958,120]
[355851448,1741635279182,-500.0,0.00050958,120]
[355851449,1741635279247,-500.0,0.00050958,120]
[355851450,1741635279309,-507.65774505,0.00050958,120]
[355851451,1741635279370,-500.0,0.00050958,120]
[355851452,1741635279428,-500.0,0.00050958,120]
[355851453,1741635279486,-500.0,0.00050958,120]
[355851454,1741635279542,-513.24611649,0.00050958,120]
[355851455,1741635279597,-500.0,0.00050958,120]
[355851456,1741635279653,-500.0,0.00050958,120]
[355851457,1741635279713,-1641.76,0.00050958,120]
[355851458,1741635279772,-649.83,0.00050958,120]
[355851459,1741635279830,-500.0,0.00050958,120]
[355851460,1741635279887,-500.0,0.00050958,120]
[355851461,1741635279943,-1000.0,0.00050958,90]
[355851462,1741635279998,-7900.94,0.00050958,60]
[355851463,1741635280060,-786.26,0.00050958,120]
[355851464,1741635280124,-500.0,0.00050958,120]
[355851465,1741635280193,-683.31,0.00050958,120]
[355851466,1741635280255,-500.0,0.00050958,120]
[355851467,1741635280323,-500.0,0.00050958,120]
[355851468,1741635280386,-500.0,0.00050958,120]
[355851469,1741635280443,-1391.87,0.00050958,120]
[355851470,1741635280504,-980.66,0.00050958,120]
[355851471,1741635280563,-618.9,0.00050958,120]
[355851472,1741635280620,-576.18,0.00050958,120]
[355851473,1741635280674,-611.25,0.00050958,120]
[355851474,1741635280728,-787.73,0.00050958,120]
[355851475,1741635280781,-477.76665235,0.00050958,120]
[355851476,1741635280831,-500.0,0.00050958,120]
[355851477,1741635280881,-500.0,0.00050958,120]
[355851478,1741635280935,-578.91,0.00050958,120]
[355851479,1741635280989,-578.91,0.00050958,120]
[355851480,1741635281049,-578.91,0.00050958,120]
[355851481,1741635281113,-578.91,0.00050958,120]
[355851482,1741635281177,-500.0,0.00050958,120]
[355851483,1741635281239,-578.91,0.00050958,120]
[355851484,1741635281297,-578.91,0.00050958,120]
[355851485,1741635281356,-578.91,0.00050958,120]
[355851486,1741635281416,-578.91,0.00050958,120]
[355851487,1741635281494,-578.91,0.00050958,120]
[355851488,1741635281552,-6359.29,0.00050958,120]
[355851489,1741635281609,-578.91,0.00050958,120]
[355851490,1741635281665,-578.91,0.00050958,120]
[355851491,1741635281718,-578.91,0.00050958,120]
[355851492,1741635281771,-578.91,0.00050958,120]
[355851493,1741635281822,-578.91,0.00050958,120]
[355851494,1741635281878,-578.91,0.00050958,120]
[355851495,1741635281934,-578.91,0.00050958,120]
[355851496,1741635281989,-578.91,0.00050958,120]
[355851497,1741635282045,-578.91,0.00050958,120]
[355851498,1741635282103,-578.91,0.00050958,120]
[355851499,1741635282176,-578.91,0.00050958,120]
[355851500,1741635282243,-578.91,0.00050958,120]
[355851501,1741635282306,-578.91,0.00050958,120]
[355851502,1741635282366,-578.91,0.00050958,120]
[355851503,1741635282426,-579.0,0.00050958,120]
[355851504,1741635282486,-500.0,0.00050958,120]
[355851505,1741635282544,-518.58941001,0.00050958,120]
[355851506,1741635282598,-1395.56,0.00050958,120]
[355851507,1741635282651,-500.0,0.00050958,120]
[355851508,1741635282708,-500.0,0.00050958,120]
[355851509,1741635282765,-500.0,0.00050958,120]
[355851510,1741635282819,-864.73,0.00050958,120]
[355851511,1741635283087,-500.0,0.00050958,120]
[355851512,1741635283152,-1864.41,0.00050958,120]
[355851513,1741635283221,-500.0,0.00050958,120]
[355851514,1741635283280,-500.0,0.00050958,120]
[355851515,1741635283339,-8339.35,0.00050958,120]
[355851516,1741635283396,-505.83637503,0.00050958,120]
[355851517,1741635283452,-500.0,0.00050958,120]
[355851518,1741635283509,-500.0,0.00050958,120]
[355851519,1741635283575,-500.0,0.00050958,120]
[355851520,1741635283638,-500.0,0.00050958,120]
[355851521,1741635283696,-1847.91,0.00050958,120]
[355851522,1741635283750,-500.0,0.00050958,120]
[355851523,1741635283805,-500.0,0.00050958,120]
[355851524,1741635283858,-500.0,0.00050958,120]
[355851525,1741635283912,-500.0,0.00050958,120]
[355851526,1741635283969,-1455.45,0.00050958,120]
[355851527,1741635284022,-2074.1,0.00050958,120]
[355851528,1741635284076,-500.0,0.00050958,120]
[355851529,1741635284136,-631.30770171,0.00050958,120]
[355851530,1741635284199,-500.0,0.00050958,120]
[355851531,1741635284261,-589.45,0.00050958,120]
[355851532,1741635284322,-500.0,0.00050958,120]
[355851533,1741635284377,-35878.75,0.00050958,120]
[355851534,1741635284429,-500.0,0.00050958,120]
[355851535,1741635284482,-1000.0,0.00050958,120]
[355851536,1741635284537,-189.43100651,0.00050958,120]
[355851537,1741635284590,-500.0,0.00050958,120]
[355851538,1741635284643,-513.57,0.00050958,120]
[355851539,1741635284694,-500.0,0.00050958,120]
[355851540,1741635284745,-2432.35,0.00050958,120]
[355851541,1741635284799,-500.0,0.00050958,120]
[355851542,1741635284854,-500.0,0.00050958,120]
[355851543,1741635284925,-500.0,0.00050958,120]
[355851544,1741635284997,-895.88,0.00050958,120]
[355851545,1741635285070,-3119.03,0.00050958,120]
[355851546,1741635285137,-501.86,0.00050958,120]
[355851547,1741635285204,-500.0,0.00050958,120]
[355851548,1741635285268,-500.0,0.00050958,120]
[355851549,1741635285331,-500.0,0.00050958,120]
[355851550,1741635285393,-9198.36,0.00050958,120]
[355851551,1741635285454,-500.0,0.00050958,120]
[355851552,1741635285514,-500.0,0.00050958,120]
[355851553,1741635285575,-500.0,0.00050958,120]
[355851554,1741635285633,-628.41,0.00050958,120]
[355851555,1741635285692,-2274.36,0.00050958,120]
[355851556,1741635285753,-500.0,0.00050958,120]
[355851557,1741635285815,-668.25,0.00050958,120]
[355851558,1741635285878,-500.0,0.00050958,120]
[355851559,1741635285944,-500.0,0.00050958,120]
[355851560,1741635286012,-518.42865834,0.00050958,120]
[355851561,1741635286077,-265.31269208,0.00050958,120]
[355851562,1741635286144,-500.0,0.00050958,120]
[355851563,1741635286213,-3281.43,0.00050958,120]
[355851564,1741635286279,-1142.78,0.00050958,120]
[355851565,1741635286344,-500.0,0.00050958,120]
[355851566,1741635286410,-500.0,0.00050958,120]
[355851567,1741635286480,-500.0,0.00050958,120]
[355851568,1741635286545,-1366.1,0.00050958,120]
[355851569,1741635286608,-500.0,0.00050958,120]
[355851570,1741635286672,-500.0,0.00050958,120]
[355851571,1741635286731,-500.0,0.00050958,120]
[355851572,1741635286790,-500.0,0.00050958,120]
[355851573,1741635286847,-500.0,0.00050958,120]
[355851574,1741635286905,-500.0,0.00050958,120]
[355851575,1741635286967,-500.0,0.00050958,120]
[355851576,1741635287032,-504.95140219,0.00050958,120]
[355851577,1741635287091,-779.37,0.00050958,120]
[355851578,1741635287152,-500.0,0.00050958,120]
[355851579,1741635287221,-1155.91,0.00050958,120]
[355851580,1741635287282,-5746.79,0.00050958,120]
[355851581,1741635287341,-500.0,0.00050958,120]
[355851582,1741635287396,-500.0,0.00050958,120]
[355851583,1741635287455,-1565.3,0.00050958,120]
[355851584,1741635287516,-1234.92,0.00050958,120]
[355851585,1741635287579,-576.71,0.00050958,120]
[355851586,1741635287642,-10283.92,0.00050958,120]
[355851587,1741635287704,-500.0,0.00050958,120]
[355851588,1741635287764,-642.88,0.00050958,120]
[355851589,1741635287825,-1531.33,0.00050958,120]
[355851590,1741635287887,-500.0,0.00050958,120]
[355851591,1741635287952,-2059.24,0.00050958,120]
[355851592,1741635288024,-500.0,0.00050958,120]
[355851593,1741635288093,-500.0,0.00050958,120]
[355851594,1741635288165,-500.0,0.00050958,120]
[355851595,1741635288245,-500.0,0.00050958,120]
[355851596,1741635288307,-500.0,0.00050958,120]
[355851597,1741635288368,-500.0,0.00050958,120]
[355851598,1741635288429,-969.22,0.00050958,120]
[355851599,1741635288489,-5529.22,0.00050958,120]
[355851600,1741635288549,-500.0,0.00050958,120]
[355851601,1741635288610,-760.6,0.00050958,120]
[355851602,1741635288672,-500.0,0.00050958,120]
[355851603,1741635288730,-616.83,0.00050958,120]
[355851604,1741635288788,-500.0,0.00050958,120]
[355851605,1741635288844,-3643.64,0.00050958,120]
[355851606,1741635288903,-500.0,0.00050958,120]
[355851607,1741635288968,-856.77,0.00050958,120]
[355851608,1741635289028,-500.0,0.00050958,120]
[355851609,1741635289085,-500.0,0.00050958,120]
[355851610,1741635289147,-704.65,0.00050958,120]
[355851611,1741635289209,-2315.64,0.00050958,120]
[355851612,1741635289270,-500.0,0.00050958,120]
[355851613,1741635289331,-951.52,0.00050958,120]
[355851614,1741635289391,-593.56,0.00050958,120]
[355851615,1741635289648,-500.0,0.00050958,120]
[355851616,1741635289710,-500.0,0.00050958,120]
[355851617,1741635289769,-500.0,0.00050958,120]
[355851618,1741635289828,-798.39,0.00050958,120]
[355851619,1741635289882,-500.0,0.00050958,120]
[355851620,1741635289938,-9407.99,0.00050958,120]
[355851621,1741635289992,-500.0,0.00050958,120]
[355851622,1741635290050,-2243.67,0.00050958,120]
[355851623,1741635290108,-500.0,0.00050958,120]
[355851624,1741635290175,-500.0,0.00050958,120]
[355851625,1741635290233,-820.04,0.00050958,120]
[355851626,1741635290292,-500.0,0.00050958,120]
[355851627,1741635290346,-562.22649876,0.00050958,120]
[355851628,1741635290402,-500.0,0.00050958,120]
[355851629,1741635290459,-815.36,0.00050958,120]
[355851630,1741635290514,-860.18,0.00050958,120]
[355851631,1741635290567,-465.62805189,0.00050958,120]
[355851632,1741635290618,-500.0,0.00050958,120]
[355851633,1741635290669,-516.99826234,0.00050958,120]
[355851634,1741635290719,-1100.44,0.00050958,120]
[355851635,1741635290768,-500.0,0.00050958,120]
[355851636,1741635290817,-500.0,0.00050958,120]
[355851637,1741635290865,-1478.73,0.00050958,120]
[355851638,1741635290914,-853.85,0.00050958,120]
[355851639,1741635290967,-500.0,0.00050958,120]
[355851640,1741635291022,-2026.71,0.00050958,120]
[355851641,1741635291079,-1230.26,0.00050958,120]
[355851642,1741635291146,-2062.52,0.00050958,120]
[355851643,1741635291210,-8461.42,0.00050958,120]
[355851644,1741635291271,-826.94,0.00050958,120]
[355851645,1741635291334,-568.14,0.00050958,30]
[355851646,1741635291399,-730.52,0.00050958,120]
[355851647,1741635291456,-500.0,0.00050958,120]
[355851648,1741635291512,-500.0,0.00050958,120]
[355851649,1741635291572,-1362.72,0.00050958,120]
[355851650,1741635291632,-898.69,0.00050958,120]
[355851651,1741635291692,-500.0,0.00050958,120]
[355851652,1741635291750,-8437.24,0.00050958,120]
[355851653,1741635291804,-500.0,0.00050958,120]
[355851654,1741635291856,-500.0,0.00050958,120]
[355851655,1741635291910,-1707.87,0.00050958,120]
[355851656,1741635291965,-1044.86,0.00050958,120]
[355851657,1741635292022,-1111.35,0.00050958,120]
[355851658,1741635292074,-618.73,0.00050958,120]
[355851659,1741635292129,-716.97,0.00050958,120]
[355851660,1741635292189,-500.0,0.00050958,120]
[355851661,1741635292245,-1423.76,0.00050958,120]
[355851662,1741635292301,-814.36,0.00050958,120]
[355851663,1741635292355,-500.0,0.00050958,120]
[355851664,1741635292403,-1149.08,0.00050958,120]
[355851665,1741635292460,-500.0,0.00050958,120]
[355851666,1741635292510,-500.0,0.00050958,120]
[355851667,1741635292563,-1161.71,0.00050958,120]
[355851668,1741635292613,-500.0,0.00050958,120]
[355851669,1741635292664,-500.0,0.00050958,120]
[355851670,1741635292724,-500.0,0.00050958,120]
[355851671,1741635292777,-1592.46,0.00050958,120]
[355851672,1741635292829,-858.08,0.00050958,120]
[355851673,1741635292881,-3230.62,0.00050958,120]
[355851674,1741635292935,-500.0,0.00050958,120]
[355851675,1741635292991,-1019.85,0.00050958,120]
[355851676,1741635293067,-2631.0,0.00050958,120]
[355851677,1741635293133,-3700.98,0.00050958,120]
[355851678,1741635293203,-500.0,0.00050958,120]
[355851679,1741635293272,-621.98,0.00050958,120]
[355851680,1741635293339,-500.0,0.00050958,120]
[355851681,1741635293405,-500.0,0.00050958,120]
[355851682,1741635293474,-899.81,0.00050958,120]
[355851683,1741635293538,-3744.89,0.00050958,120]
[355851684,1741635293604,-507.23,0.00050958,120]
[355851685,1741635293669,-500.0,0.00050958,120]
[355851686,1741635293734,-930.1,0.00050958,120]
[355851687,1741635293795,-500.0,0.00050958,120]
[355851688,1741635293850,-500.0,0.00050958,120]
[355851689,1741635293908,-500.0,0.00050958,120]
[355851690,1741635293965,-2361.72,0.00050958,120]
[355851691,1741635294020,-604.77,0.00050958,120]
[355851692,1741635294074,-1945.21,0.00050958,120]
[355851693,1741635294129,-599.26,0.00050958,120]
[355851694,1741635294195,-6317.81,0.00050958,120]
[355851695,1741635294260,-2734.65,0.00050958,120]
[355851696,1741635294320,-6317.81,0.00050958,120]
[355851697,1741635294380,-6317.81,0.00050958,120]
[355851698,1741635294439,-500.0,0.00050958,120]
[355851699,1741635294500,-6317.81,0.00050958,120]
[355851700,1741635294557,-6317.81,0.00050958,120]
[355851701,1741635294613,-6317.81,0.00050958,120]
[355851702,1741635294672,-6317.81,0.00050958,120]
[355851703,1741635294733,-6317.81,0.00050958,120]
[355851704,1741635294789,-6317.81,0.00050958,120]
[355851705,1741635294845,-6317.81,0.00050958,120]
[355851706,1741635294899,-260.38126186,0.00050958,120]
[355851707,1741635294955,-6317.81,0.00050958,120]
[355851708,1741635295014,-6317.81,0.00050958,120]
[355851709,1741635295070,-6317.81,0.00050958,120]
[355851710,1741635295127,-6317.81,0.00050958,120]
[355851711,1741635295191,-6317.81,0.00050958,120]
[355851712,1741635295252,-6317.81,0.00050958,120]
[355851713,1741635295313,-6317.81,0.00050958,120]
[355851714,1741635295370,-6317.81,0.00050958,120]
[355851715,1741635295431,-6317.81,0.00050958,120]
[355851716,1741635295488,-6317.81,0.00050958,120]
[355851717,1741635295547,-6317.81,0.00050958,120]
[355851718,1741635295619,-6317.81,0.00050958,120]
[355851719,1741635295890,-6317.81,0.00050958,120]
[355851720,1741635295962,-6317.93676309,0.00050958,120]
[355851721,1741635296033,-500.0,0.00050958,120]
[355851722,1741635296112,-500.0,0.00050958,120]
[355851723,1741635296190,-2534.35,0.00050958,120]
[355851724,1741635296256,-500.0,0.00050958,120]
[355851725,1741635296320,-151.0,0.00051,120]
[355851726,1741635296383,-151.0,0.00051,120]
[355851727,1741635296443,-6800.0,0.00051,30]
[355851728,1741635296507,-168.1,0.00051,30]
[355851729,1741635296578,-1300.04,0.00051,30]
[355851730,1741635296645,-270.63,0.00051,30]
[355851731,1741635296710,-1315.52211228,0.0005114,120]
[355851733,1741635296783,-500.0,0.00051232,120]
[355851735,1741635296860,-513.2483345,0.00051232,120]
[355851736,1741635296935,-500.0,0.00051232,120]
[355851739,1741635297012,-500.0,0.00051232,120]
[355851740,1741635297084,-536.29691813,0.00051232,120]
[355851742,1741635297158,-151.0,0.00051232,120]
[355851745,1741635297238,-151.0,0.00051232,120]
[355851747,1741635297307,-500.0,0.00051232,120]
[355851748,1741635297374,-500.0,0.00051232,120]
[355851751,1741635297441,-520.06302413,0.00051232,120]
[355851753,1741635297509,-500.0,0.00051232,120]
[355851755,1741635297576,-500.0,0.00051232,120]
[355851756,1741635297642,-500.0,0.00051232,120]
[355851759,1741635297709,-500.0,0.00051232,120]
[355851761,1741635297777,-753.12,0.00051232,120]
[355851763,1741635297846,-1971.95,0.00051232,120]
[355851765,1741635297924,-500.0,0.00051232,120]
[355851767,1741635297997,-500.0,0.00051232,120]
[355851768,1741635298072,-500.0,0.00051232,120]
[355851771,1741635298149,-500.0,0.00051232,120]
[355851772,1741635298223,-500.0,0.00051232,120]
[355851774,1741635298294,-282.21513918,0.00051232,120]
[355851777,1741635298367,-500.0,0.00051232,120]
[355851778,1741635298441,-500.0,0.00051232,120]
[355851781,1741635298514,-523.59598287,0.00051232,120]
[355851783,1741635298587,-500.0,0.00051232,120]
[355851784,1741635298660,-1641.76,0.00051232,120]
[355851787,1741635298736,-649.83,0.00051232,120]
[355851789,1741635298809,-500.0,0.00051232,120]
[355851791,1741635298883,-500.0,0.00051232,120]
[355851793,1741635298954,-364.32633631,0.00051232,90]
[355851795,1741635299024,-7900.94,0.00051232,60]
[355851796,1741635299097,-786.26,0.00051232,120]
[355851799,1741635299174,-500.0,0.00051232,120]
[355851801,1741635299254,-683.31,0.00051232,120]
[355851803,1741635299326,-500.0,0.00051232,120]
[355851805,1741635299398,-500.0,0.00051232,120]
[355851807,1741635299468,-500.0,0.00051232,120]
[355851809,1741635299540,-1391.87,0.00051232,120]
[355851811,1741635299610,-980.66,0.00051232,120]
[355851813,1741635299681,-618.9,0.00051232,120]
[355851815,1741635299749,-576.18,0.00051232,120]
[355851817,1741635299820,-611.25,0.00051232,120]
[355851818,1741635299889,-787.73,0.00051232,120]
[355851821,1741635299960,-500.0,0.00051232,120]
[355851822,1741635300032,-517.57181546,0.00051232,120]
[355851825,1741635300107,-533.67918741,0.00051232,120]
[355851827,1741635300187,-6359.29,0.00051232,120]
[355851829,1741635300273,-500.0,0.00051232,120]
[355851831,1741635300352,-1395.56,0.00051232,120]
[355851833,1741635300436,-500.0,0.00051232,120]
[355851834,1741635300507,-864.73,0.00051232,120]
[355851837,1741635300581,-500.0,0.00051232,120]
[355851839,1741635300654,-500.0,0.00051232,120]
[355851841,1741635300727,-1864.41,0.00051232,120]
[355851843,1741635300800,-500.0,0.00051232,120]
[355851845,1741635300873,-644.84140235,0.00051232,120]
[355851847,1741635300948,-8339.35,0.00051232,120]
[355851849,1741635301023,-500.0,0.00051232,120]
[355851851,1741635301098,-500.0,0.00051232,120]
[355851853,1741635301183,-227.81249327,0.00051232,120]
[355851855,1741635301261,-500.0,0.00051232,120]
[355851857,1741635301334,-1847.91,0.00051232,120]
[355851859,1741635301409,-500.0,0.00051232,120]
[355851861,1741635301486,-500.0,0.00051232,120]
[355851863,1741635301558,-480.49219621,0.00051232,120]
[355851864,1741635301632,-500.0,0.00051232,120]
[355851867,1741635301706,-1455.45,0.00051232,120]
[355851869,1741635301779,-2074.1,0.00051232,120]
[355851871,1741635301851,-500.0,0.00051232,120]
[355851873,1741635301926,-500.0,0.00051232,120]
[355851875,1741635302000,-589.45,0.00051232,120]
[355851877,1741635302075,-500.0,0.00051232,120]
[355851878,1741635302150,-35878.75,0.00051232,120]
[355851881,1741635302227,-500.0,0.00051232,120]
[355851883,1741635302309,-1000.0,0.00051232,120]
[355851885,1741635302389,-500.0,0.00051232,120]
[355851886,1741635302469,-513.57,0.00051232,120]
[355851889,1741635302545,-150.7374705,0.00051232,120]
[355851891,1741635302621,-2432.35,0.00051232,120]
[355851893,1741635302708,-500.0,0.00051232,120]
[355851895,1741635302773,-500.0,0.00051232,120]
[355851897,1741635302848,-595.03455082,0.00051232,120]
[355851898,1741635302929,-895.88,0.00051232,120]
[355851901,1741635303013,-3119.03,0.00051232,120]
[355851903,1741635303110,-501.86,0.00051232,120]
[355851904,1741635303195,-500.0,0.00051232,120]
[355851906,1741635303278,-500.0,0.00051232,120]
[355851909,1741635303358,-500.0,0.00051232,120]
[355851910,1741635303439,-9198.36,0.00051232,120]
[355851913,1741635303523,-500.0,0.00051232,120]
[355851917,1741635303779,-500.0,0.00051232,120]
[355851919,1741635303848,-500.0,0.00051232,120]
[355851921,1741635303917,-628.41,0.00051232,120]
[355851923,1741635303997,-500.0,0.00051232,120]
[355851925,1741635304071,-2274.36,0.00051232,120]
[355851927,1741635304138,-668.25,0.00051232,120]
[355851929,1741635304209,-500.0,0.00051232,120]
[355851931,1741635304286,-500.0,0.00051232,120]
[355851933,1741635304369,-500.0,0.00051232,120]
[355851934,1741635304443,-3281.43,0.00051232,120]
[355851935,1741635304518,-1142.78,0.00051232,120]
[355851936,1741635304592,-500.0,0.00051232,120]
[355851938,1741635304669,-500.0,0.00051232,120]
[355851940,1741635304745,-500.0,0.00051232,120]
[355851942,1741635304814,-1366.1,0.00051232,120]
[355851944,1741635304890,-500.0,0.00051232,120]
[355851947,1741635304974,-500.0,0.00051232,120]
[355851949,1741635305057,-500.0,0.00051232,120]
[355851951,1741635305139,-500.0,0.00051232,120]
[355851953,1741635305223,-500.0,0.00051232,120]
[355851955,1741635305306,-500.0,0.00051232,120]
[355851957,1741635305385,-500.0,0.00051232,120]
[355851959,1741635305464,-779.37,0.00051232,120]